Cogmind - Beta 11.1 @@@ ROGUE MODE // 2022.06.14 @ 17:05:53 Player: ChromeKnight Result: Self-destructed Performance ------------- Evolutions (1) 500 Regions Visited (2) 400 Robots Destroyed (29) 145 Value Destroyed (551) 551 Prototype IDs (1) 20 Alien Tech Used (0) 0 Bonus (0) 0 TOTAL SCORE: 1616 Bonus ------- None Cogmind --------- Core Integrity 308/400 Matter 300/300 Energy 265/265 System Corruption 0% Temperature Cool (0) Movement Treading (160) Location -9/Materials Parts ------- > --- POWER (1) -------- Improved Ion Engine > --- PROPULSION (2) --- Light Treads Light Treads > --- UTILITY (4) ------ Cooling System Medium Storage Unit Targeting Computer Improved Power Shielding > --- WEAPON (2) ------- EM Pulse Cannon EM Pulse Cannon > --- INVENTORY (10) --- Cooling System Improved Power Shielding Improved Power Shielding Improved Power Shielding Hacking Suite EM Pulse Cannon EM Pulse Cannon Rocket Launcher Flail Peak State ------------ > --- POWER ------------ Improved Ion Engine > --- PROPULSION ------- Light Treads Light Treads > --- UTILITY ---------- Disposable Heat Sink Medium Storage Unit Improved Power Shielding Improved Power Shielding > --- WEAPON ----------- EM Pulse Cannon EM Pulse Cannon > --- INVENTORY -------- Ion Engine Targeting Computer Improved Power Shielding Hacking Suite Improved Medium Laser EM Pulse Cannon EM Pulse Cannon Rocket Launcher Flail [Rating: 21] Favorites ----------- Power Ion Engine Engine Ion Engine Propulsion Light Treads Treads Light Treads Utility Medium Storage Unit Device Heat Sink Storage Medium Storage Unit Processor Targeting Computer Protection Improved Power Shielding Weapon EM Pulse Gun Energy Gun EM Pulse Gun Energy Cannon EM Pulse Cannon Ballistic Gun Heavy Assault Rifle Ballistic Cannon Light Cannon Launcher Rocket Launcher Build | -11 -10 -9 ------- Run | Scr Mat Mat Slots Evolved 2 | . . 2 Power . | . . . Propulsion . | . . . Utility 2 | . . 2 Weapon . | . . . Parts Attached 34 | 8 9 17 Power 5 | 1 3 1 Engine 5 | 1 3 1 Core . | . . . Reactor . | . . . Propulsion 6 | 2 1 3 Treads 6 | 2 1 3 Leg . | . . . Wheel . | . . . Hover . | . . . Flight . | . . . Utility 9 | 1 2 6 Device 3 | . 1 2 Storage 3 | 1 1 1 Processor 1 | . . 1 Hackware . | . . . Protection 2 | . . 2 Artifact . | . . . Weapon 14 | 4 3 7 Energy Gun 6 | 2 1 3 Energy Cannon 2 | . . 2 Ballistic Gun 3 | 2 . 1 Ballistic Cannon 1 | . 1 . Launcher 2 | . 1 1 Special Weapon . | . . . Impact Weapon . | . . . Slashing Weapon . | . . . Piercing Weapon . | . . . Special Melee Weapon . | . . . Unidentified Prototypes 1 | . . 1 Parts Lost 1 | . . 1 Power . | . . . Propulsion 1 | . . 1 Utility . | . . . Weapon . | . . . Highest Loss Streak 1 | . . 1 To Critical Strikes . | . . . Average Slot Usage (%) 85 | . 98 79 Engine 11 | . 14 11 Treads 23 | . 27 21 Device 7 | . 13 4 Storage 11 | . 14 11 Processor 2 | . . 3 Protection 3 | . . 4 Energy Gun 13 | . 27 6 Energy Cannon 5 | . . 8 Ballistic Cannon 4 | . . 6 Naked Turns . | . . . Heaviest Build 35 | 11 20 35 Greatest Support 40 | 40 40 40 Greatest Overweight (x) 1 | . . 1 Average Overweight (x) . | . . . Largest Inventory Capacity 10 | 8 10 10 Average Capacity 9 | 6 8 10 Most Carried 10 | 2 10 10 Average Carried 8 | . 6 9 Final Capacity 10 | 8 10 10 Final Carried 10 | 1 10 9 Class Distribution -------------------- 100% | Mutant Dominant Class ---------------- Mutant | -10/Materials Mutant | -9/Materials Resources | -11 -10 -9 ----------- Run | Scr Mat Mat Matter Collected 701 | 247 123 331 Remotely . | . . . Salvage Created 1048 | . 584 464 Parts 61 | . 37 24 Haulers Intercepted 2 | . 1 1 Recyclers Shooed . | . . . Parts Field Recycled . | . . . Retrieved Matter . | . . . Parts Self-Destructed . | . . . Prevented . | . . . Kills | -11 -10 -9 ------- Run | Scr Mat Mat Combat Hostiles Destroyed 16 | . 9 7 Guns 7 | . 6 1 Cannons 2 | . . 2 AOE 6 | . 3 3 Classes Destroyed 9 | . 7 2 Worker 1 | . . 1 Tunneler 1 | . 1 . Hauler 2 | . 1 1 Recycler 6 | . 3 3 Operator 1 | . 1 . Watcher 2 | . 1 1 Swarmer 6 | . 3 3 Grunt 8 | . 6 2 Sentry 2 | . . 2 Best Kill Streak 6 | . 6 5 Combat Bots Only 4 | . 4 4 Max Kills in Single Turn 3 | . 2 3 Gunslinging . | . . . Exploded 2 | . 1 2 Melee . | . . . Uniques/NPCs Destroyed . | . . . Combat | -11 -10 -9 -------- Run | Scr Mat Mat Damage Taken 826 | . 297 529 Core 134 | . 42 92 Absorbed by Shields . | . . . Redirected to Shielding 7 | . . 7 Regen/Repaired (Parts) 135 | . . 135 Core Remaining (%) 91 | 100 83 . Volleys Fired 64 | . 30 34 Largest 2 | . 2 2 Hottest 126 | . 80 126 Shots Fired 119 | . 60 59 Gun 72 | . 57 15 Cannon 41 | . . 41 Launcher 6 | . 3 3 Special . | . . . Kinetic 26 | . . 26 Thermal 44 | . 30 14 Explosive 6 | . 3 3 Electromagnetic 43 | . 27 16 Robot Hit Streak 18 | . 15 18 Robot Miss Streak 3 | . 2 3 Penetration Max . | . . . Secondary Targets 2 | . 2 . Max Gunslinging Chain 1 | . 1 . Shots Hit Robots 90 | . 48 42 Core Hits 41 | . 27 14 Critical Kills . | . . . Critical Parts Destroyed . | . . . Critical Strikes 2 | . . 2 Burn 1 | . . 1 Corrupt 1 | . . 1 Melee Attacks . | . . . Impact . | . . . Slashing . | . . . Piercing . | . . . Sneak Attacks . | . . . Combat Hostiles . | . . . Follow-up Attacks . | . . . Damage Inflicted 1934 | . 796 1138 Guns 754 | . 590 164 Cannons 659 | . . 659 Explosions 521 | . 206 315 Melee . | . . . Ramming . | . . . Kinetic 313 | . . 313 Thermal 401 | . 250 151 Explosive 521 | . 206 315 Electromagnetic 699 | . 340 359 Impact . | . . . Slashing . | . . . Piercing . | . . . Highest Corruption . | . . . Average Corruption . | . . . Corruption Purged . | . . . Corruption Blocked . | . . . Overload Shots . | . . . Overflow Damage 4 | . . 4 Projectiles 4 | . . 4 Explosions . | . . . Melee . | . . . Knockbacks 1 | . . 1 Impact . | . . . Kinetic 1 | . . 1 Secondary . | . . . Self-Inflicted Damage 118 | . 5 113 Shots 2 | . 1 1 Rammed . | . . . Targets Rammed . | . . . Kicked . | . . . Crushed . | . . . Highest Temperature 220 | . 6 220 Average Temperature 65 | . 2 74 Received Heat Transfer 264 | . 96 168 Effects 1 | . . 1 Energy Bleed 1 | . . 1 Siege Activations . | . . . Robots Corrupted 1 | . . 1 Combat Hostiles 1 | . . 1 Parts Fried 3 | . . 3 Impact Corruptions . | . . . Robots Melted . | . . . Combat Hostiles . | . . . Parts Melted . | . . . Heat Transferred 957 | . 550 407 Parts Sabotaged . | . . . Parts Stolen . | . . . Parts Stripped . | . . . Power Chain Reactions . | . . . Missiles Intercepted . | . . . Alert | -11 -10 -9 ------- Run | Scr Mat Mat Peak Influence 303 | . 303 247 Initial 79 | . . 79 Average 111 | . 122 112 Maximum Alert Level 1 | . 1 1 Low Security (%) 78 | 100 82 74 Level 1 21 | . 17 25 Level 2 . | . . . Level 3 . | . . . Level 4 . | . . . Level 5 . | . . . High Security . | . . . Max Security . | . . . Squads Dispatched 4 | . 2 2 Investigation 2 | . 1 1 Extermination . | . . . Reinforcement 2 | . 1 1 Assault . | . . . Garrison . | . . . Intercept . | . . . Searches Triggered . | . . . Construction Impeded . | . . . Haulers Reinforced . | . . . Active Scanning Responses . | . . . Cargo Convoy Interrupts . | . . . Stealth | -11 -10 -9 --------- Run | Scr Mat Mat Distress Signals 4 | . 1 3 Communications Jammed . | . . . Distress Signals . | . . . Times Spotted 25 | . 14 11 Peak Tracking Total 5 | . 5 4 Tactical Retreats 1 | . 1 . Traps | -11 -10 -9 ------- Run | Scr Mat Mat Traps Triggered 2 | . 1 1 Indirectly . | . . . Trap Hack Attempts . | . . . Triggered . | . . . Disarmed . | . . . Reprogrammed . | . . . Reused . | . . . Traps Extracted . | . . . Installed . | . . . Triggered . | . . . Machines | -11 -10 -9 ---------- Run | Scr Mat Mat Machines Disabled 2 | . . 2 Max in Single Turn 1 | . . 1 Machines Sabotaged . | . . . Garrisons Compromised . | . . . Overloaded Fab Kills . | . . . Hacking | -11 -10 -9 --------- Run | Scr Mat Mat Machines Accessed 6 | . 2 4 Terminals 5 | . 2 3 Fabricators . | . . . Repair Stations 1 | . . 1 Recycling Units . | . . . Scanalyzers . | . . . Garrison Access . | . . . Total Hacks 16 | . 6 10 Successful 7 | . . 7 Failed 9 | . 6 3 Catastrophic . | . . . Database Lockouts . | . . . Manual 13 | . 5 8 Terminals 14 | . 6 8 Fabricators . | . . . Repair Stations 2 | . . 2 Recycling Units . | . . . Scanalyzers . | . . . Garrison Access . | . . . Terminal Hacks 1 | . . 1 Branch Access Points 1 | . . 1 Fabricator Hacks . | . . . Repair Station Hacks 2 | . . 2 Scan Component 1 | . . 1 Repair 1 | . . 1 Recycling Unit Hacks . | . . . Scanalyzer . | . . . Garrison Access Hacks . | . . . Unauthorized Hacks 4 | . . 4 Terminals 4 | . . 4 Botnet 3 | . . 3 Operators 1 | . . 1 Fabricators . | . . . Repair Stations . | . . . Recycling Units . | . . . Scanalyzers . | . . . Garrison Access . | . . . Data Cores Recovered . | . . . Used . | . . . Hacking Detections 4 | . 2 2 Full Trace Events 1 | . 1 . Feedback Events . | . . . Feedback Blocked . | . . . Robot Schematics Acquired . | . . . Robots Built . | . . . Authchips . | . . . Time . | . . . Total Robot Build Rating . | . . . Part Schematics Acquired . | . . . Parts Built . | . . . Authchips . | . . . Time . | . . . Total Part Build Rating . | . . . Parts Repaired 1 | . . 1 Time 26 | . . 26 Parts Recycled . | . . . Recycled Matter . | . . . Retrieved Matter . | . . . Retrieved Components . | . . . Parts Scanalyzed . | . . . Part Schematics Acquired . | . . . Parts Damaged . | . . . Bothacking | -11 -10 -9 ------------ Run | Scr Mat Mat Used RIF Installer . | . . . Robots Hacked . | . . . Non-combat . | . . . Combat . | . . . Robot Hacks Applied . | . . . Relay Couplers Released . | . . . Fabnet Peak Effective % . | . . . Robots Rewired . | . . . Allies Hacked . | . . . Hacks Repelled . | . . . Allies | -11 -10 -9 -------- Run | Scr Mat Mat Total Allies . | . . . Largest Group . | . . . Highest-Rated Group . | . . . Highest-Rated Ally . | . . . Total Orders . | . . . Ally Attacks . | . . . Total Damage . | . . . Kills . | . . . Allies Corrupted . | . . . Allies Melted . | . . . Intel | -11 -10 -9 ------- Run | Scr Mat Mat Robot Analysis Total . | . . . Derelict Logs Recovered . | . . . Drone Launches . | . . . Drone Recoveries . | . . . Exploration | -11 -10 -9 ------------- Run | Scr Mat Mat Turns Passed 2065 | 82 651 1332 Spaces Moved 791 | 46 279 466 Core 3 | 3 . . Treads 788 | 43 279 466 Legs . | . . . Wheels . | . . . Hover . | . . . Flight . | . . . Fastest Speed 50 | 50 160 160 Average Speed 159 | 152 160 160 Slowest Speed 240 | 160 160 240 Overloaded Moves . | . . . Propulsion Burnouts . | . . . Robots Hopped . | . . . Cave-ins Triggered . | . . . Exploration Rate (%) 23 | 4 37 30 Regions Visited 2 Branch Regions . Pre-discovered Areas . | . . . Known Exits Taken . | . . . Unknown Exits Taken 2 | 1 1 . Scrap Searched . | . . . Spaces Dug . | . . . Terrain Destroyed 72 | . 16 56 Melee . | . . . Projectile . | . . . AOE 72 | . 16 56 Terrain Rammed . | . . . Walls Destroyed . | . . . Machines Disabled . | . . . Actions | -11 -10 -9 --------- Run | Scr Mat Mat Total 1474 | 55 427 992 Wait 543 | . 90 453 Move 789 | 45 278 466 Hop . | . . . Pick Up 19 | 1 12 6 Fast Attach 19 | 6 2 11 Attach 2 | 1 1 . Detach 2 | 1 . 1 Swap 13 | 1 6 6 Drop 23 | . 8 15 Fire 64 | . 30 34 Melee . | . . . Ram . | . . . Kick . | . . . Crush . | . . . Escape Stasis . | . . . Rewire . | . . . Trap . | . . . Miscellaneous . | . . . Route ------- -11/Scrapyard -10/Materials (discovered 2 exits: *Mat / [*Min]) -9/Materials (discovered 2 exits: [*Mat] / Min) History --------- Turn | Location | Event 4 | -11/Scrapyard | Discovered new exit (range 16) 83 | -11/Scrapyard | Entered Materials 310 | -10/Materials | Build established: Mutant 523 | -10/Materials | Discovered new exit (range 15) 523 | -10/Materials | Discovered new exit (range 16) 734 | -10/Materials | Entered another Materials area 734 | -9/Materials | Evolved 2 slots: Utility x2 1774 | -9/Materials | Repaired Lgt. Treads 1987 | -9/Materials | Discovered new exit (range 13) 2065 | -9/Materials | Identified exit to Mines 2066 | -9/Materials | Self-destructed Last Messages --------------- Awaiting botnet instructions. >>Trojan(Operators) Trojan loaded successfully. Testing... Operator tracking enabled and active. 02059_ K-01 Serf cleans the Atomic Centrifuge. 02060_ K-01 Serf cleans the Terminal. 02062_ K-01 Serf cleans the Atomic Centrifuge. 02062_ K-01 Serf cleans the Terminal. 02065_ Connecting with Terminal... >>Trojan(Botnet) Trojan loaded successfully. Testing... Terminal linked with 2 systems. Awaiting botnet instructions. >>Access(Branch) Found 1 branch access point: (48,49) Mines Map updated. 02065_ K-01 Serf cleans the Atomic Centrifuge. Map ----- +----------------------------------------------------+ | # """ # # #???????????????????????? | | # """ # ##[* #???????????????????????? | | + #########%*% #???????????????????????? | | ########??# !** #???????????????????????? | | [# #??# ** # ???????????????????? | | ![ # #??#!! [ * + "??????????????????? | | [%[# " " #??#!! * [ # "??????????????????? | | [ + "R" #??# == o #???????????????????????? | | # """ ##?# % #??????????????????>????? | | # # ##?##### ## ##+?????????????????????? | | = #### ### ## #????????????????????? | | # # ### #????????????????????? | | # "" # #?#^ #????????????????????? | | # [ T" + %#?# #????????????????????? | | # # [ "" ####?# +????????????????????? | | # #????# k#????????????????????? | | # # # #????# ###??????????????????? | | # # ###+####????# ???????????????????? | | # ### # #???????# #????????????????????? | | # #?# """" # #???##### #????????????????????? | | # #?# """" # #???# #????????????????????? | | # #?# """" # #???# #????????????????????? | | # #?# # #???# #????????????????????? | | # ########+## ##### k""" k"#????????????????????? | | # """t T#????????????????????? | | ########## ##### """ @ "#?????????????????o??? | | # #?# #???# #????????????????????? | | # """ #?# #???# k #????????????????????? | | # """ #?# #???# #"T"### #????????????????????? | | #! """ #?# #???# #"""#?? #????????????????????? | | # """ #?# #???# #####??+#????????????????????? | | ?? ??# #???# #????????????????????????????? | | #+##+##### #???# #????????????????????????????? | | # #???# #????????????????????????????? | | #### ######## #???? ?????????????????????????????? | | ???# ########+##??? ?????????????????????????????? | | ???# # #??? ?????????????????????????????? | | ???# # #??? ?????????????????????????????? | | ?### # #??? ?????????????????????????????? | | ?# # #??? ?????????????????????????????? | | ?# + #??? ?????????????????????????????? | | ?# # #?????????????????????????????????? | | ?# # #?????????????????????????????????? | | ?# # #?????????????????????????????????? | | ?# < ###########?????????????????????????????????? | | ?# #???????????????????????????????????????????? | | ?#####???????????????????????????????????????????? | | ?????????????????????????????????????????????????? | | ?????????????????????????????????????????????????? | | ?????????????????????????????????????????????????? | +----------------------------------------------------+ Best States ------------- Heat Dissipation 50 Coolant Potential 50 Energy Generation 12 Energy Capacity 265 Matter Stores 300 Matter Capacity 300 Sight Range 16 Terrain Scan Density 10 Power Shielding 66 Evasion (%) 40 Targeting Accuracy 5 Recoil Reduction 2 Item Schematics ----------------- None Robot Schematics ------------------ None Fabricated ------------ Nothing Alien Tech Used ----------------- None Achievements -------------- None Challenges ------------ None Game ------ Seed SpacefoldTerrainRegenerator Manual? 0 Play Time 00:12:10 Cumulative 332.2 hours Start 2022.06.14 @ 16:32:01 End 2022.06.14 @ 17:05:53 Sessions 1 Manual Loads 0 Difficulty Rogue Special Mode None Game No. 592 Rogue 437 Adventurer 148 Explorer 7 Win Type - Total 11 Types 9/0/1/1/0/0/0/0/0 Lore% 74 Gallery% 87 Achievement% 67 Wizard Run 0 Options --------- ASCII 0 Keyboard 0 Movement Numpad Keybinds 0 Fullscreen 1 Font 18/SmallcapsGlow Map View 76x50 Tactical HUD 1 Map Filters NONE Filters NONE Steam 1 RUN: 16ce3d75-e9a8-4da0-8c60-f1c69dfa2799